bitfinex/quotes_ETHUSD_20241030
["timestamp","ask_amount","ask_price","bid_price","bid_amount"]
[1730252233831,0.7843,2623.7,2623.2,4.6583068]
[1730252234035,4.59574,2623.7,2623.2,4.6583068]
[1730252234331,3.81172,2623.5,2623.0,3.81233]
[1730252234583,0.7843,2623.4,2623.0,3.81233]
[1730252234786,0.7843,2623.4,2623.1,3.81225]
[1730252235676,0.7843,2623.4,2623.3,3.81199]
[1730252236055,0.7843,2623.4,2623.1,3.81225]
[1730252236439,0.7843,2623.4,2622.9,7.62497]
[1730252236639,0.7843,2623.4,2622.9,8.462647]
[1730252237257,0.7843,2623.4,2622.9,4.650157]
[1730252237575,0.7843,2623.4,2623.2,7.62414]
[1730252237747,0.7843,2623.6,2623.2,3.81205]
[1730252238380,0.7843,2623.6,2623.2,7.62408]
[1730252238553,0.7843,2623.6,2623.2,8.386488]
[1730252238752,0.7843,2624.1,2623.7,3.81139]
[1730252238956,0.7843,2624.1,2624.0,3.81097]
[1730252239156,0.7843,2624.6,2624.2,3.81065]
[1730252239375,0.7843,2624.6,2624.4,3.81025]
[1730252239546,3.80997,2624.7,2624.2,3.81058]
[1730252239745,0.7843,2624.6,2624.0,3.81083]
[1730252239956,0.7843,2624.6,2624.1,3.8108]
[1730252240143,0.0823526,2624.5,2624.1,3.8108]
[1730252240566,0.0823526,2624.5,2623.8,4.56296]
[1730252240567,3.8926826,2624.5,2623.8,4.56296]
[1730252240781,3.8926826,2624.5,2624.0,3.81088]
[1730252241080,0.0823526,2624.5,2624.0,7.62177]
[1730252241247,0.0823526,2624.5,2624.0,3.81088]
[1730252241648,0.0823526,2624.5,2624.0,8.078028]
[1730252241847,0.0823526,2624.5,2624.1,3.81079]
[1730252242262,0.0823526,2624.5,2624.0,4.267148]
[1730252242462,0.0823526,2624.5,2624.1,3.81073]
[1730252242691,0.0823526,2624.5,2624.1,3.81075]
[1730252242896,0.0823526,2624.5,2624.1,4.6185398]
[1730252243400,0.0823526,2624.5,2624.2,3.81061]
[1730252243602,0.0823526,2624.5,2624.2,3.8106]
[1730252244765,0.0823526,2624.5,2624.1,4.6186098]
[1730252245765,0.0823526,2624.5,2624.1,3.81083]
[1730252246267,0.0823526,2624.5,2624.3,3.81053]
[1730252246900,0.0823526,2624.5,2624.2,7.62119]
[1730252247565,0.0823526,2624.5,2624.1,3.81082]
[1730252247763,0.0823526,2624.5,2624.1,0.8077968]
[1730252247962,0.0823526,2624.5,2624.2,3.8106]
[1730252248179,0.0823526,2624.5,2624.2,7.6212]
[1730252248400,0.0823526,2624.5,2624.3,3.81053]
[1730252248607,0.0823526,2624.5,2624.2,7.62118]
[1730252249381,0.0823526,2624.5,2624.2,3.81058]
[1730252249602,0.0823526,2624.5,2624.3,0.456238]
[1730252250315,0.0823526,2624.5,2624.3,4.266768]
[1730252250606,0.0823526,2624.5,2624.3,0.456238]
[1730252252481,0.0823526,2624.5,2624.3,4.266658]
[1730252252692,0.0823526,2624.5,2624.4,4.65219671]
[1730252252896,0.7555,2625.1,2624.6,3.81008]
[1730252253081,3.89220936,2625.0,2624.4,1.65748547]
[1730252253283,3.80988,2624.8,2624.3,4.266668]
[1730252253508,0.7555,2624.9,2624.1,4.57639]
[1730252253509,0.08262541,2624.7,2624.1,4.57639]
[1730252253720,0.7555,2624.5,2624.3,3.81052]
[1730252254011,0.08262541,2624.4,2624.3,3.81052]
[1730252254172,0.08262541,2624.4,2624.2,3.81068]
[1730252254913,0.08262541,2624.4,2624.3,3.81053]
[1730252255119,0.08262541,2624.4,2624.3,4.572658]
[1730252255297,0.7555,2624.7,2624.3,4.572658]
[1730252255495,0.08264144,2624.6,2624.4,3.8103]
[1730252255694,0.08264144,2624.6,2624.5,3.81024]
[1730252255893,0.7555,2625.0,2624.4,8.38619]
[1730252255894,4.5651,2625.0,2624.4,8.38619]
[1730252256227,0.08264144,2624.9,2624.6,3.81005]
[1730252256427,0.08264144,2624.9,2624.5,7.62038]
[1730252256614,0.08264144,2624.9,2624.5,3.81015]
[1730252257890,3.89232144,2624.9,2624.5,3.81015]
[1730252258392,3.89232144,2624.9,2624.4,4.7251218]
[1730252258627,3.89232144,2624.9,2624.5,0.92976998]
[1730252258923,0.7555,2624.6,2624.2,3.81068]
[1730252259228,0.08269414,2624.5,2624.1,3.81072]
[1730252259433,0.08269414,2624.5,2624.2,4.191742]
[1730252259791,0.08269414,2624.5,2624.2,0.381072]
[1730252260283,0.08269414,2624.5,2624.2,4.191732]
[1730252260486,0.08269414,2624.5,2624.2,0.381072]
[1730252260690,3.89295414,2624.5,2623.9,3.81107]
[1730252260891,3.89295414,2624.5,2623.8,3.7656]
[1730252261115,3.89295414,2624.5,2624.1,3.81082]
[1730252261116,0.08269414,2624.5,2624.1,3.81082]
[1730252261833,0.08269414,2624.5,2624.4,3.81039]
[1730252261996,0.08269414,2624.5,2624.4,3.88658924]
[1730252262191,0.7555,2625.2,2624.5,3.81024]
[1730252262390,0.7555,2625.2,2624.7,3.80988]
[1730252262697,0.07987336,2625.1,2624.7,3.80985]
[1730252262997,3.80874,2625.6,2625.0,3.80952]
[1730252263198,3.80874,2625.6,2625.1,3.80934]
[1730252263395,0.07722926,2625.5,2625.1,3.80934]
[1730252263629,0.07722926,2625.5,2625.0,3.80944]
[1730252263930,0.07722926,2625.5,2625.0,0.76953851]
[1730252263931,4.56444,2625.4,2625.0,0.76953851]
[1730252264138,0.07736801,2625.3,2625.0,0.76953851]
[1730252264324,0.07736801,2625.3,2625.1,3.80925]
[1730252264507,3.80867,2625.6,2625.1,3.80925]
[1730252264716,3.80867,2625.6,2625.0,0.76953851]
[1730252264717,0.07742581,2625.5,2625.0,0.76953851]
[1730252264922,3.88629581,2625.5,2625.0,3.80951]
[1730252265510,3.88629581,2625.5,2624.9,3.80956]
[1730252265705,4.59278,2625.3,2624.7,3.80988]
[1730252265918,0.07745124,2625.2,2624.7,3.80986]
[1730252266126,0.07745124,2625.2,2624.8,3.80971]
[1730252266342,0.7836,2625.3,2625.0,3.80941]
[1730252266647,0.07753444,2625.1,2625.0,3.80941]
[1730252266812,0.7836,2625.3,2624.9,3.80966]
[1730252267014,0.07753444,2625.1,2624.9,3.80966]
[1730252267229,0.7836,2625.3,2625.0,0.761935]
[1730252267445,0.7836,2625.3,2625.0,4.571445]
[1730252268415,0.7836,2625.3,2625.0,0.761935]
[1730252268615,4.5927,2625.3,2625.0,0.761935]
[1730252269755,4.5927,2625.3,2624.6,3.81]
[1730252270061,3.80947,2625.1,2624.6,3.81]
[1730252270217,4.59313,2625.0,2624.5,3.81023]
[1730252270554,0.07751363,2624.9,2624.4,0.84627192]
[1730252270716,0.07751363,2624.9,2624.5,3.81021]
[1730252270918,0.07751363,2624.9,2624.7,3.80988]
[1730252271119,0.7836,2625.2,2624.8,3.80981]
[1730252271415,0.0774882,2625.1,2624.9,3.80953]
[1730252271658,0.0774882,2625.1,2624.8,3.80981]
[1730252271839,0.0774882,2625.1,2625.0,3.80952]
[1730252272259,3.80894,2625.4,2624.9,8.075581]
[1730252272430,0.07747203,2625.1,2624.9,4.266011]
[1730252272767,0.07747203,2625.0,2624.9,4.266011]
[1730252273274,7.618,2625.4,2624.9,4.266011]
[1730252273432,0.07749283,2625.0,2624.9,4.266011]
[1730252273632,3.80894,2625.4,2624.9,4.266011]
[1730252273869,0.07749283,2625.0,2624.9,4.266011]
[1730252274065,3.80894,2625.4,2624.9,4.266011]
[1730252274235,0.07749283,2625.0,2624.9,4.266011]
[1730252274436,3.80894,2625.4,2624.9,8.075601]
[1730252274632,0.07749283,2625.0,2624.9,4.266011]
[1730252275244,3.80894,2625.4,2624.9,4.266011]
[1730252275440,0.7836,2625.5,2624.9,0.456461]
[1730252275767,3.8091,2625.3,2624.8,3.8098]
[1730252276134,3.80894,2625.4,2624.9,3.80964]
[1730252276334,0.07751363,2625.3,2624.9,3.80964]
[1730252276966,0.07751363,2625.3,2624.8,3.8098]
[1730252277267,0.07751363,2625.3,2624.4,3.81029]
[1730252277431,3.8097,2624.9,2624.4,3.81029]
[1730252277634,3.8097,2624.9,2624.4,4.647862]
[1730252277831,3.88732597,2624.8,2624.4,4.647862]
[1730252278074,0.07751597,2624.8,2624.4,4.647862]
[1730252278373,3.80967,2624.9,2624.4,4.647862]
[1730252278674,0.07751597,2624.7,2624.4,4.647862]
[1730252278876,0.07749054,2624.8,2624.5,0.5402662]
[1730252279071,3.80967,2624.9,2624.5,0.5402662]
[1730252279258,0.07749054,2624.7,2624.5,0.5402662]
[1730252279457,3.80967,2624.9,2624.5,0.5402662]
[1730252279677,0.07749054,2624.6,2624.3,0.7548]
[1730252279883,3.80981,2624.8,2624.3,3.81053]
[1730252280080,0.07749054,2624.5,2624.2,3.81054]
[1730252280396,0.07740267,2624.4,2624.3,3.81049]
[1730252280594,0.07740267,2624.4,2624.3,3.88669843]
[1730252280754,4.59322,2625.0,2624.5,3.81018]
[1730252281182,0.07736568,2624.9,2624.5,3.81018]
[1730252281377,3.88710568,2624.9,2624.4,3.81038]
[1730252281562,3.80988,2624.8,2624.3,4.65615784]
[1730252281987,3.887418,2624.7,2624.3,0.84567784]
[1730252282357,4.60041,2624.6,2624.1,0.7594]
[1730252282601,0.7903,2624.6,2624.0,0.55]
[1730252282903,0.7903,2624.6,2624.2,3.81067]
[1730252283070,3.81047,2624.4,2623.8,3.81119]
[1730252283442,3.81047,2624.4,2623.9,4.192219]
[1730252283561,0.077368,2624.3,2624.0,3.81097]
[1730252283899,0.077368,2624.3,2624.1,3.81081]
[1730252284056,4.60041,2624.6,2624.1,3.81081]
[1730252284251,0.07721539,2624.2,2624.1,3.81081]
[1730252284500,4.59947,2625.3,2624.4,3.81039]
[1730252284699,4.59947,2625.3,2624.8,3.80968]
[1730252284926,4.59947,2625.3,2624.9,3.80966]
[1730252284927,0.7903,2625.3,2624.9,3.80966]
[1730252285194,0.0746502,2625.2,2625.0,3.80948]
[1730252285394,0.0746502,2625.2,2624.9,3.80966]
[1730252285594,4.59939,2625.3,2624.9,3.80966]
[1730252285799,0.07477558,2625.1,2624.9,3.80966]
[1730252285996,0.7903,2625.3,2624.9,4.266486]
[1730252286311,0.07490095,2625.0,2624.9,4.266486]
[1730252286508,0.7903,2625.3,2624.9,8.076066]
[1730252286807,0.07490095,2625.2,2624.9,4.266486]
[1730252287172,0.7903,2625.3,2625.0,3.80951]
[1730252287376,0.7903,2625.3,2624.9,4.266486]
[1730252287377,0.07493578,2625.1,2624.9,4.266486]
[1730252287675,0.7903,2625.3,2625.0,0.4266486]
[1730252287874,0.7903,2625.3,2624.8,0.28363217]
[1730252288113,0.7903,2625.3,2624.9,3.80965]
[1730252288617,0.7903,2625.5,2625.0,3.8094]
[1730252289191,4.5991,2625.5,2625.0,3.8094]
[1730252289389,0.7903,2625.7,2625.2,3.80913]
[1730252289922,0.7903,2625.7,2625.1,3.80937]
[1730252289923,3.80865,2625.6,2625.1,3.80937]
[1730252291206,3.80865,2625.6,2624.8,1.21302011]
[1730252291207,3.80865,2625.6,2624.8,4.56914]
[1730252291413,3.80917,2625.3,2624.8,5.63258897]
[1730252291720,3.85584975,2625.7,2624.6,7.56939]
[1730252291721,3.8094,2625.1,2624.6,7.56939]
[1730252291870,0.7903,2625.2,2624.7,0.28358449]
[1730252292075,0.7903,2625.2,2624.8,3.80969]
[1730252292280,4.5996,2625.2,2624.8,0.49288683]
[1730252293017,4.5996,2625.2,2624.8,4.58626132]
[1730252293318,4.5996,2625.2,2624.8,0.77647132]
[1730252293522,0.7903,2625.2,2624.8,0.49288683]
[1730252293704,0.07507737,2625.1,2624.8,0.49288683]
[1730252294107,4.59961,2625.2,2624.8,0.49288683]
[1730252294288,0.07507737,2625.1,2624.8,0.49288683]
[1730252294487,0.07507737,2625.1,2624.9,0.45863241]
[1730252294888,0.07507737,2625.1,2624.9,4.26818241]
[1730252295123,8.40828,2625.4,2624.9,4.26818241]
[1730252295333,3.80912,2625.3,2624.7,7.61969]
[1730252295633,3.88419737,2625.3,2624.8,0.28356244]
[1730252296427,3.80923,2625.2,2624.7,3.80983]
[1730252296790,0.07504023,2625.1,2624.7,3.80983]
[1730252297039,0.07504023,2625.1,2624.7,4.72150301]
[1730252297217,0.07504023,2625.1,2624.8,3.80973]
[1730252297413,0.07504023,2625.1,2624.8,4.09334017]
[1730252297616,4.59931,2625.4,2624.8,0.28361017]
[1730252297929,0.07504023,2625.3,2624.9,3.80964]
[1730252298288,0.07504023,2625.3,2625.2,3.80923]
[1730252298491,0.7903,2625.6,2625.2,3.80923]
[1730252298813,0.7903,2625.6,2625.1,3.80937]
[1730252298814,0.07503095,2625.5,2625.1,3.80937]
[1730252299011,0.07503095,2625.5,2625.2,3.8092]
[1730252299793,0.07503095,2625.5,2625.1,3.80935]
[1730252299994,3.88384095,2625.5,2625.0,8.37824]
[1730252300189,3.88384095,2625.5,2625.0,9.35036013]
[1730252300505,3.88384095,2625.5,2625.0,3.8094]
[1730252301024,3.88384095,2625.5,2625.1,3.80937]
[1730252301891,3.80909,2625.3,2624.8,3.80967]
[1730252302094,4.59937,2625.4,2624.8,4.09332888]
[1730252302298,3.80909,2625.3,2624.9,3.80965]
[1730252302499,3.80924,2625.2,2624.8,1.00282561]
[1730252302720,3.88430345,2625.2,2624.9,0.28364757]
[1730252302919,3.88430345,2625.2,2624.8,4.09342757]
[1730252303430,3.88430345,2625.2,2624.8,3.80978]
[1730252303794,3.88430345,2625.2,2624.7,0.28364757]
[1730252304430,3.88430345,2625.2,2624.7,0.77657037]
[1730252304632,3.8094,2625.1,2624.7,0.77657037]
[1730252304837,4.60011,2624.8,2624.7,0.28364757]
[1730252305023,4.60011,2624.8,2624.2,0.7594]
[1730252305024,3.8102,2624.6,2624.2,0.28364757]
[1730252305225,3.81052,2624.4,2624.2,0.28364757]
[1730252305441,4.60071,2624.4,2624.0,0.28364757]
[1730252305601,0.07501005,2624.3,2623.9,4.09464757]
[1730252305808,0.07501005,2624.3,2624.0,4.09460757]
[1730252306210,0.07501005,2624.3,2624.1,0.28364757]
[1730252306539,0.07501005,2624.3,2624.0,3.81096]
[1730252306847,0.07501005,2624.3,2624.0,4.09477621]
[1730252307144,0.7903,2625.0,2624.2,1.3094]
[1730252307360,0.7903,2625.0,2624.6,3.81006]
[1730252307560,0.07226598,2624.9,2624.8,3.80981]
[1730252307841,4.59939,2625.3,2624.9,3.80961]
[1730252307842,0.7903,2625.3,2624.9,3.80961]
[1730252308215,4.5995,2625.3,2624.8,0.28381621]
[1730252308444,0.7903,2625.3,2624.8,4.09355621]
[1730252308811,4.5994,2625.3,2624.8,0.28381621]
[1730252309013,4.5994,2625.3,2624.7,8.37914]
[1730252309228,4.5994,2625.3,2624.8,0.28381621]
[1730252309541,4.58963,2625.0,2624.5,4.26430594]
[1730252309784,4.58963,2625.0,2624.6,0.28369983]
[1730252309785,3.80967,2624.9,2624.6,0.28369983]
[1730252309924,3.80981,2624.8,2624.4,0.28373933]
[1730252310123,3.80981,2624.8,2624.4,4.09410933]
[1730252310473,7.61972,2624.8,2624.4,0.28373933]
[1730252310649,3.80997,2624.7,2624.3,0.28373933]
[1730252310855,3.80981,2624.8,2624.3,0.28373933]
[1730252310856,4.59022,2624.6,2624.3,0.28373933]
[1730252311052,0.7801,2624.6,2624.3,0.28373933]
[1730252311253,0.7801,2624.6,2624.2,4.09438933]
[1730252311566,0.7801,2624.6,2624.3,3.81052]
[1730252311725,0.7801,2624.6,2624.3,4.09425933]
[1730252311926,0.7801,2624.6,2624.2,1.11965556]
[1730252312127,0.7801,2624.6,2623.8,1.19186339]
[1730252312128,3.81041,2624.4,2624.1,0.28373933]
[1730252312380,3.81058,2624.3,2623.9,0.28373933]
[1730252313173,0.7801,2624.2,2623.9,0.28388562]
[1730252313376,0.7801,2624.2,2623.9,3.8111]
[1730252314876,0.07231008,2624.1,2623.9,3.8111]
[1730252315228,0.07231008,2624.1,2623.9,4.60172028]
[1730252315535,0.07231008,2624.1,2623.9,8.41275028]
[1730252317371,0.07231008,2624.1,2624.0,3.81097]
[1730252317569,0.07231008,2624.1,2623.9,1.07426932]
[1730252317873,0.07231008,2624.1,2624.0,3.81097]
[1730252319964,0.07231008,2624.1,2623.9,1.07430297]
[1730252320162,0.07231008,2624.1,2623.9,0.79062028]
[1730252320365,0.07231008,2624.1,2623.8,3.81114]
[1730252320366,0.07231008,2624.1,2623.8,7.62232]
[1730252320549,0.7801,2624.2,2623.8,7.62232]
[1730252320759,0.7801,2624.2,2623.6,0.8169]
[1730252320760,0.07231008,2624.0,2623.6,0.8169]
[1730252320936,0.7801,2624.2,2623.8,3.81118]
[1730252321138,0.07231008,2623.9,2623.8,3.81118]
[1730252321559,0.7801,2624.2,2623.8,3.81118]
[1730252321741,0.7801,2624.2,2623.7,3.81141]
[1730252321742,0.07231008,2623.9,2623.7,3.8114]
[1730252321938,3.81083,2624.1,2623.6,3.81148]
[1730252322136,0.07231008,2623.8,2623.6,3.81148]
[1730252322377,3.81083,2624.1,2623.6,3.81148]
[1730252322675,0.07231008,2623.7,2623.6,3.81148]
[1730252322886,3.81084,2624.1,2623.6,4.655486]
[1730252323061,0.7801,2624.2,2623.6,4.655486]
[1730252323062,0.07224971,2623.7,2623.6,3.81155]
[1730252323375,4.59079,2624.2,2623.6,3.81155]
[1730252323762,0.07224971,2624.1,2623.5,3.81168]
[1730252323941,0.07224971,2624.1,2623.7,3.8114]
[1730252324142,0.07224971,2624.1,2623.6,3.81155]
[1730252324338,0.07224971,2624.1,2623.7,3.81131]
[1730252324538,0.07224971,2624.1,2623.6,3.81155]
[1730252324738,0.07224971,2624.1,2623.6,7.62302]
[1730252324938,0.07224971,2624.1,2623.6,3.81147]
[1730252325576,0.07224971,2624.1,2623.6,7.62294]
[1730252326266,0.07224971,2624.1,2623.6,3.81147]
[1730252326468,0.07224971,2624.1,2623.7,3.81139]
[1730252327142,0.07224971,2624.1,2624.0,3.81097]
[1730252327346,0.07224971,2624.1,2624.0,3.88717933]
[1730252327545,0.8039,2624.5,2624.2,7.6213]
[1730252327741,0.8039,2624.5,2624.2,3.81065]
[1730252327949,0.07220325,2624.4,2624.2,7.62125]
[1730252328841,0.07220325,2624.4,2624.2,3.8106]
[1730252329275,0.07220325,2624.4,2624.3,3.81053]
[1730252329779,0.07220325,2624.4,2624.2,4.19166]
[1730252330170,0.07220325,2624.4,2624.3,3.81053]
[1730252330883,0.8039,2624.7,2624.5,3.81017]
[1730252331081,0.8039,2625.0,2624.4,0.7984]
[1730252331242,0.8039,2625.4,2624.9,3.80966]
[1730252331678,0.8039,2625.4,2625.0,3.80951]
[1730252332246,0.8039,2625.4,2624.9,3.80966]
[1730252332453,0.8039,2625.4,2624.8,8.4178]
[1730252332670,0.8039,2625.4,2625.0,3.80942]
[1730252333962,0.8039,2625.4,2625.1,3.80934]
[1730252334989,0.8039,2625.4,2624.9,3.80952]
[1730252335192,0.8039,2625.4,2624.9,7.61911]
[1730252335496,0.8039,2625.4,2624.9,3.80952]
[1730252336041,0.8039,2625.4,2625.0,3.80938]
[1730252336145,0.8039,2625.4,2625.1,3.8093]
[1730252336651,0.8039,2625.4,2625.2,3.80922]
[1730252336852,0.8039,2625.4,2625.2,7.61837]
[1730252337062,0.8039,2625.7,2625.2,3.80915]
[1730252337252,0.8039,2625.7,2625.0,4.092609]
[1730252337253,3.80866,2625.6,2625.0,4.092609]
[1730252337462,3.80866,2625.6,2625.1,0.4553401]
[1730252337659,3.80866,2625.6,2625.0,4.092569]
[1730252337865,3.80888,2625.5,2625.0,0.283189]
[1730252338249,3.80888,2625.5,2625.0,4.092709]
[1730252338490,3.80888,2625.5,2625.0,0.283189]
[1730252338691,4.61241,2625.7,2625.0,4.092699]
[1730252338854,3.80867,2625.6,2625.0,4.092699]
[1730252339058,3.80867,2625.6,2625.0,7.902129]
[1730252339820,4.61241,2625.7,2625.1,3.80935]
[1730252339960,3.80866,2625.6,2625.0,7.902059]
[1730252340164,3.80866,2625.6,2625.0,7.902049]
[1730252340410,3.80866,2625.6,2625.1,3.80934]
[1730252340566,3.80866,2625.6,2625.0,7.902059]
[1730252340762,3.80866,2625.6,2625.0,4.092619]
[1730252341209,3.80866,2625.6,2625.1,3.80935]
[1730252341567,3.80866,2625.6,2625.0,4.092619]
[1730252341767,3.80866,2625.6,2625.0,7.902059]
[1730252341983,3.80866,2625.6,2625.0,4.092619]
[1730252342201,3.80882,2625.5,2625.0,4.092619]
[1730252342981,3.80866,2625.6,2625.0,7.902049]
[1730252343310,3.80866,2625.6,2625.1,3.80937]
[1730252343559,3.80866,2625.6,2625.0,4.092609]
[1730252343675,3.80866,2625.6,2625.0,7.902049]
[1730252344022,3.80866,2625.6,2625.0,0.283189]
[1730252344023,0.8036,2625.4,2625.0,0.283189]
[1730252344177,4.61254,2625.4,2625.0,0.283189]
[1730252345077,0.07253061,2625.3,2625.0,0.283189]
[1730252348223,4.61297,2625.1,2625.0,0.283189]
[1730252348430,8.83454779,2625.1,2625.0,0.283189]
[1730252348723,8.90705054,2625.1,2625.0,0.283189]
[1730252348929,8.91705054,2625.1,2625.0,0.283189]
[1730252349131,11.91705054,2625.1,2625.0,0.283189]
[1730252350430,11.90705054,2625.1,2625.0,0.283189]
[1730252364047,8.84150079,2625.1,2625.0,0.283189]
[1730252365045,0.07250275,2625.1,2625.0,0.283189]
[1730252365414,3.80917,2625.3,2625.0,0.283189]
[1730252365617,0.07221023,2625.1,2625.0,0.283189]
[1730252365817,3.80917,2625.3,2625.0,0.283189]
[1730252366053,0.07221024,2625.1,2625.0,4.912109]
[1730252366222,3.80843,2625.8,2625.3,3.80905]
[1730252366553,3.80843,2625.8,2625.0,2.0509527]
[1730252366554,0.07226596,2625.7,2625.0,1.9747639]
[1730252366751,0.07226596,2625.7,2625.3,3.80896]
[1730252367073,0.07226596,2625.7,2625.4,4.62825]
[1730252367275,4.7125572,2625.9,2625.4,0.8194]
[1730252367412,0.07239132,2625.6,2625.5,0.462836]
[1730252367617,0.9043372,2625.9,2625.5,0.462836]
[1730252368256,0.07251205,2625.8,2625.5,0.462836]
[1730252370830,0.07251205,2625.8,2625.4,0.8194]
[1730252371350,3.88089205,2625.8,2625.4,0.8194]
[1730252371867,0.07251205,2625.8,2625.4,0.8194]
[1730252372820,0.07251205,2625.8,2625.4,4.62833]
[1730252373021,0.07251205,2625.8,2625.7,3.8085]
[1730252373254,0.07251205,2625.8,2625.7,5.432505]
[1730252374365,0.07251205,2625.8,2625.7,9.12421986]
[1730252374566,0.07251205,2625.8,2625.7,9.33025282]
[1730252374770,0.1256372,2625.9,2625.8,4.35836]
[1730252375064,0.1256372,2625.9,2625.8,5.14226]
[1730252375365,0.1256372,2625.9,2625.8,9.88491865]
[1730252375564,0.1256372,2625.9,2625.8,10.09081208]
[1730252375765,0.1256372,2625.9,2625.8,9.80876647]
[1730252375964,0.1256372,2625.9,2625.8,10.09064774]
[1730252376473,0.1256372,2625.9,2625.8,12.38352368]
[1730252376826,0.1256372,2625.9,2625.8,12.39352368]
[1730252377027,0.1256372,2625.9,2625.8,12.89275484]
[1730252377227,0.1256372,2625.9,2625.8,13.34344759]
[1730252377524,0.1256372,2625.9,2625.8,12.89275484]
[1730252378144,0.1256372,2625.9,2625.8,13.34311924]
[1730252378350,0.1256372,2625.9,2625.8,12.89275484]
[1730252378923,0.1256372,2625.9,2625.8,12.61099763]
[1730252379128,0.1256372,2625.9,2625.8,12.89230445]
[1730252379962,0.1256372,2625.9,2625.8,13.15562304]
[1730252380155,0.1256372,2625.9,2625.8,12.87431622]
[1730252380863,0.1256372,2625.9,2625.8,16.4767443]
[1730252382276,0.1256372,2625.9,2625.8,15.70071405]
[1730252383082,0.1256372,2625.9,2625.8,15.69071405]
[1730252384785,0.1256372,2625.9,2625.8,6.25876647]
[1730252385145,0.1256372,2625.9,2625.8,11.69346819]
[1730252385481,0.8184,2627.5,2626.8,0.7839]
[1730252385678,0.8184,2627.5,2627.1,3.80639]
[1730252385854,0.8184,2627.5,2627.1,7.61277]
[1730252386052,0.06836159,2627.4,2627.1,3.80638]
[1730252386598,0.06836159,2627.4,2627.2,3.80633]
[1730252386896,3.80563,2627.7,2627.2,3.80633]
[1730252387097,0.06843141,2627.6,2627.2,3.80633]
[1730252387395,0.06843141,2627.6,2627.1,3.80638]
[1730252387775,0.06843141,2627.6,2627.2,3.80633]
[1730252388801,0.06843141,2627.6,2627.3,3.80609]
[1730252389109,4.61439,2627.8,2627.3,3.80609]
[1730252389295,0.06864782,2627.7,2627.1,3.8064]
[1730252389614,3.80602,2627.5,2626.9,3.80669]
[1730252389764,0.8089,2627.4,2627.1,3.80647]
[1730252389968,0.06865015,2627.3,2627.1,3.80647]
[1730252390167,0.06865015,2627.3,2626.9,7.68948725]
[1730252390471,0.06865015,2627.3,2626.9,0.84733873]
[1730252390670,0.06865015,2627.3,2626.9,3.80672]
[1730252390883,0.06865015,2627.3,2626.8,3.80691]
[1730252391092,3.80657,2627.1,2626.6,0.7743]
[1730252391299,0.87754085,2627.0,2626.5,3.80721]
[1730252391604,0.06864085,2627.0,2626.8,0.7743]
[1730252391909,3.80587,2627.6,2627.0,3.80652]
[1730252392204,0.06861758,2627.5,2627.1,3.80646]
[1730252392789,0.06861758,2627.5,2627.2,3.80631]
[1730252393106,3.80577,2627.6,2627.1,3.80646]
[1730252393282,0.06864085,2627.5,2627.1,3.80646]
[1730252395505,3.87456085,2627.5,2626.9,7.99732498]
[1730252395711,3.87456085,2627.5,2627.0,3.80658]
[1730252396706,0.8089,2627.4,2626.9,4.19064498]
[1730252396905,0.06866644,2627.3,2626.9,7.99733498]
[1730252397104,0.06866644,2627.3,2627.0,3.80657]
[1730252397305,0.06866644,2627.3,2627.0,3.88269316]
[1730252397506,0.06866644,2627.3,2627.0,3.80657]
[1730252397716,0.06866644,2627.3,2626.9,4.19064498]
[1730252398711,0.06866644,2627.3,2627.2,3.80633]
[1730252398912,4.61436,2627.8,2627.1,3.80633]
[1730252399117,0.06866411,2627.7,2627.3,3.80617]
[1730252399315,8.41993,2627.8,2627.3,3.80617]
[1730252399515,3.87442505,2627.7,2627.1,3.80633]
[1730252399685,0.06868505,2627.7,2627.1,3.80633]
[1730252400025,0.7664,2627.5,2627.1,3.80647]
[1730252400222,0.7664,2627.5,2627.0,0.4964945]
[1730252400223,0.7664,2627.5,2627.0,4.3031045]
[1730252400416,0.06870598,2627.4,2627.0,0.4964945]
[1730252400618,0.06870598,2627.4,2627.2,3.80632]
[1730252400819,0.06870598,2627.4,2627.3,3.80618]
[1730252401117,0.06870598,2627.4,2627.2,3.8063]
[1730252401477,0.06870598,2627.4,2627.2,3.80625]
[1730252402685,0.06870598,2627.4,2627.3,3.80618]
[1730252403484,0.06870598,2627.4,2626.9,4.19061498]
[1730252403834,0.06870598,2627.4,2627.0,4.3030815]
[1730252404038,0.06870598,2627.4,2627.1,3.80645]
[1730252404225,0.06870598,2627.4,2627.1,3.88257192]
[1730252405024,0.06870598,2627.4,2627.1,7.68897192]
[1730252405206,0.06870598,2627.4,2627.1,3.88251192]
[1730252405398,0.06870598,2627.4,2627.1,0.07612192]
[1730252406036,0.06870598,2627.4,2627.1,3.80643]
[1730252406334,0.06870598,2627.4,2627.1,0.84934365]
[1730252406542,0.06870598,2627.4,2626.5,6.10032]
[1730252406543,3.80672,2627.0,2626.5,6.10032]
[1730252406714,0.8351153,2626.9,2626.4,8.40397]
[1730252406909,0.8351153,2626.9,2626.5,0.840397]
[1730252407219,0.8351153,2626.9,2626.3,3.80763]
[1730252407220,3.80698,2626.8,2626.3,3.80763]
[1730252407421,3.80698,2626.8,2626.3,3.80756]
[1730252407623,0.06867807,2626.7,2626.3,3.88370297]
[1730252407931,0.7664,2626.6,2626.0,7.61591]
[1730252408128,0.06864085,2626.5,2626.0,3.80794]
[1730252408315,3.87607085,2626.5,2626.1,0.380794]
[1730252408634,0.06864085,2626.5,2626.1,0.380794]
[1730252409704,0.06864085,2626.5,2626.1,4.26486356]
[1730252410433,0.06864085,2626.5,2626.1,0.380794]
[1730252410597,0.06864085,2626.5,2626.0,7.61612]
[1730252410802,0.06864085,2626.5,2626.1,3.80783]
[1730252411391,3.87601085,2626.5,2626.0,3.80806]
[1730252411852,0.7664,2625.9,2625.5,0.79133401]
[1730252412200,0.06844771,2625.8,2625.6,3.80865]
[1730252413951,0.06844771,2625.8,2625.5,0.8159023]
[1730252414455,0.06844771,2625.8,2625.3,3.80907]
[1730252414657,0.06844771,2625.8,2625.5,3.80879]
[1730252415093,0.06844771,2625.8,2625.2,4.60043401]
[1730252415094,3.87680771,2625.8,2625.2,4.60043401]